fUSD/lending_fUSD_20240322
["ID","MTS","AMOUNT","RATE_DAILY","PERIOD"]
[320083129,1711141049025,-250.0,0.000405,30]
[320083130,1711141049048,-2110.0,0.000405,15]
[320083131,1711141049072,-156.70510043,0.0004059,30]
[320083132,1711141049094,-150.0,0.000406,15]
[320083133,1711141049120,-152.02382033,0.00040603,30]
[320083134,1711141049144,-175.53380712,0.00040655,30]
[320083135,1711141049167,-152.0,0.00040656,26]
[320083136,1711141049189,-847.03497982,0.00040707,30]
[320083137,1711141049211,-158.55633221,0.0004085,30]
[320083138,1711141049233,-500.0,0.000409,15]
[320083139,1711141049462,-518.77714815,0.00040937,120]
[320083140,1711141049486,-200000.0,0.00041,31]
[320083141,1711141049509,-500.0,0.00041,70]
[320083142,1711141049533,-250.0,0.00041,30]
[320083143,1711141049556,-429.0,0.00041,15]
[320083144,1711141049579,-59115.80420662,0.00041,120]
[320083145,1711141049603,-2110.0,0.00041,15]
[320083146,1711141049625,-2000.0,0.00041,30]
[320083147,1711141049648,-2000.0,0.00041095,120]
[320083148,1711141049671,-705.48558423,0.00041095,120]
[320083149,1711141049695,-4000.0,0.00041096,30]
[320083150,1711141049717,-500.0,0.00041096,30]
[320083151,1711141049740,-847.03497982,0.00041126,30]
[320083152,1711141049763,-154.91546264,0.00041131,30]
[320083153,1711141049787,-333.031912,0.00041198,49]
[320083154,1711141049810,-152.0,0.00041231,27]
[320083155,1711141049833,-500.0,0.00041234,30]
[320083156,1711141049857,-159.94999475,0.00041246,30]
[320083157,1711141049879,-2000.0,0.00041369,120]
[320083158,1711141049902,-356.0,0.00041385,120]
[320083159,1711141049924,-153.48852243,0.0004146,39]
[320083160,1711141049949,-648.27795683,0.0004147,30]
[320083161,1711141049972,-151.032215,0.00041498,41]
[320083162,1711141049994,-268.11,0.000415,71]
[320083163,1711141050016,-250.0,0.000415,30]
[320083164,1711141050038,-2110.0,0.000415,15]
[320083165,1711141050060,-500.0,0.00041508,30]
[320083166,1711141050082,-229.0,0.0004158,49]
[320083167,1711141050106,-356.0,0.00041635,120]
[320083168,1711141050129,-435.70062455,0.00041643,120]
[320083169,1711141050152,-500.0,0.00041712,30]
[320083170,1711141050174,-500.0,0.00041782,30]
[320083171,1711141050197,-166.52535599,0.00041788,30]
[320083172,1711141050221,-333.031912,0.00041798,49]
[320083173,1711141050243,-152.0,0.00041805,28]
[320083174,1711141050266,-183.29452168,0.00041872,120]
[320083175,1711141050288,-648.27795683,0.00041875,30]
[320083176,1711141050318,-356.0,0.00041885,120]
[320083177,1711141050341,-364.0,0.000419,120]
[320083178,1711141050363,-154.91546264,0.00041964,30]
[320083179,1711141050385,-166.66666669,0.00041984,30]
[320083180,1711141050409,-200000.0,0.00042,32]
[320083181,1711141050432,-308.25109614,0.00042,44]
[320083182,1711141050454,-1000.0,0.00042,120]
[320083183,1711141050477,-600.0,0.00042,80]
[320083184,1711141050501,-250.0,0.00042,30]
[320083185,1711141050525,-2009.9,0.00042,30]
[320083186,1711141050549,-300.0,0.00042,16]
[320083187,1711141050574,-2110.0,0.00042,15]
[320083188,1711141050599,-1027.0,0.00042,30]
[320083189,1711141050623,-500.0,0.00042056,30]
[320083190,1711141050645,-185.15169227,0.00042103,30]
[320083191,1711141050669,-159.94999475,0.00042109,30]
[320083192,1711141050694,-648.27795683,0.00042111,30]
[320083193,1711141050717,-356.0,0.00042135,120]
[320083194,1711141050740,-156.70510043,0.00042151,30]
[320083195,1711141050766,-333.031912,0.00042198,49]
[320083196,1711141050789,-847.03497982,0.0004227,30]
[320083197,1711141050812,-157.90778457,0.00042305,30]
[320083198,1711141050835,-200.184017,0.00042323,30]
[320083199,1711141050860,-168.678952,0.00042323,30]
[320083200,1711141050884,-194.10442,0.00042323,30]
[320083201,1711141050908,-180.885576,0.00042323,30]
[320083202,1711141050932,-500.0,0.0004233,30]
[320083203,1711141050956,-500.0,0.00042338,30]
[320083204,1711141050979,-152.0,0.00042379,29]
[320083205,1711141051002,-356.0,0.00042385,120]
[320083206,1711141051025,-153.48852243,0.0004246,43]
[320083207,1711141051047,-166.52535602,0.00042484,30]
[320083208,1711141051071,-151.032215,0.00042498,42]
[320083209,1711141051095,-250.0,0.000425,30]
[320083210,1711141051120,-2110.0,0.000425,15]
[320083211,1711141051143,-160.49370812,0.000426,33]
[320083212,1711141051167,-500.0,0.00042604,30]
[320083213,1711141051191,-356.0,0.00042635,120]
[320083214,1711141051214,-168.68631045,0.00042748,30]
[320083215,1711141051237,-166.5527312,0.00042764,30]
[320083216,1711141051259,-144349.74348791,0.000428,30]
[320083217,1711141051285,-8897.28199633,0.000428,120]
[320083218,1711141051309,-308286.76729612,0.000428,120]
[320083219,1711141051331,-847.03497982,0.00042844,30]
[320083220,1711141051356,-5959.03,0.00042869,30]
[320083221,1711141051384,-5959.03,0.00042869,30]
[320083222,1711141051407,-5959.03,0.00042869,30]
[320083223,1711141051431,-5959.03,0.00042869,30]
[320083224,1711141051454,-500.0,0.00042878,30]
[320083225,1711141051478,-356.0,0.00042885,120]
[320083226,1711141051503,-159.94999475,0.00042893,30]
[320083227,1711141051527,-152.0,0.00042953,30]
[320083228,1711141051552,-500.0,0.00042973,30]
[320083229,1711141051575,-821.33199371,0.0004298,30]
[320083230,1711141059032,-150.0,0.00032877,30]
[320083231,1711141059360,-424.43544149,0.00040109,30]
[320083232,1711141059385,-566.21475945,0.00040294,30]
[320083233,1711141059410,-720.9335851,0.00040315,30]
[320083234,1711141059434,-566.21475945,0.00040827,30]
[320083235,1711141059460,-720.9335851,0.00041012,30]
[320083236,1711141059487,-167.93240817,0.00041321,30]
[320083237,1711141059515,-424.43544149,0.00041541,30]
[320083238,1711141059539,-324.64241211,0.00041597,30]
[320083239,1711141059566,-324.64241211,0.00041645,30]
[320083240,1711141059590,-566.21475945,0.00041676,30]
[320083241,1711141059615,-424.43544149,0.00041935,30]
[320083242,1711141059638,-166.3345474,0.00041965,30]
[320083243,1711141059662,-566.21475945,0.00042094,30]
[320083244,1711141059687,-424.43544149,0.00042262,30]
[320083245,1711141059711,-324.64241211,0.00042297,30]
[320083246,1711141059735,-720.9335851,0.00042369,30]
[320083247,1711141059759,-720.9335851,0.00042388,30]
[320083248,1711141059783,-566.21475945,0.00042408,30]
[320083249,1711141059806,-720.9335851,0.0004243,30]
[320083250,1711141059831,-720.9335851,0.00042545,30]
[320083251,1711141059856,-720.93358533,0.00042573,30]
[320083252,1711141059884,-566.21475945,0.00042806,30]
[320083253,1711141059909,-324.64241211,0.00042862,30]
[320083254,1711141059932,-424.43544149,0.00042902,30]
[320083255,1711141059954,-8217.46952489,0.0004298,30]
[320083256,1711141059981,-200000.0,0.00043,33]
[320083257,1711141060004,-554.61588461,0.00043,30]
[320083258,1711141060027,-1000.0,0.00043,120]
[320083259,1711141060049,-800.0,0.00043,100]
[320083260,1711141060072,-250.0,0.00043,60]
[320083261,1711141060094,-2000.0,0.00043,30]
[320083262,1711141060121,-300.0,0.00043,17]
[320083263,1711141060145,-50000.0,0.00043,30]
[320083264,1711141060169,-500.0,0.00043,30]
[320083265,1711141060191,-500.0,0.00043,30]
[320083266,1711141060213,-500.0,0.00043,30]
[320083267,1711141060237,-500.0,0.00043,30]
[320083268,1711141060261,-500.0,0.00043,30]
[320083269,1711141060284,-500.0,0.00043,30]
[320083270,1711141060306,-500.0,0.00043,30]
[320083271,1711141060329,-531.45,0.00043,30]
[320083272,1711141060353,-2110.0,0.00043,15]
[320083273,1711141060380,-1533.99688227,0.00043,30]
[320083274,1711141060403,-10003.04884584,0.00043,120]
[320083275,1711141060427,-9999.99,0.00043,120]
[320083276,1711141060451,-753.0,0.00043,120]
[320083277,1711141060475,-356.0,0.00043135,120]
[320083278,1711141060499,-5959.03,0.00043142,30]
[320083279,1711141060525,-5959.03,0.00043142,30]
[320083280,1711141060549,-500.0,0.00043152,30]
[320083281,1711141060573,-157.58853873,0.00043304,19]
[320083282,1711141060597,-362.90096222,0.00043385,120]
[320083283,1711141060624,-324.64241229,0.00043392,30]
[320083284,1711141060648,-1000.0,0.000434,120]
[320083285,1711141060672,-5959.03,0.00043415,30]
[320083286,1711141060699,-5959.03,0.00043415,30]
[320083287,1711141060722,-500.0,0.00043426,30]
[320083288,1711141060747,-151.032215,0.00043498,43]
[320083289,1711141060772,-250.0,0.000435,60]
[320083290,1711141060795,-173.96,0.000435,15]
[320083291,1711141060819,-152.0,0.00043528,31]
[320083292,1711141060843,-337.0,0.0004356,53]
[320083293,1711141060867,-150.0,0.00043566,120]
[320083294,1711141060890,-500.0,0.00043618,30]
[320083295,1711141060914,-1091.0,0.0004365,30]
[320083296,1711141060937,-5959.03,0.00043689,30]
[320083297,1711141060959,-5959.03,0.00043689,30]
[320083298,1711141060982,-500.0,0.000437,30]
[320083299,1711141061010,-508.55299713,0.000437,30]
[320083300,1711141061034,-566.21475945,0.000437,30]
[320083301,1711141061057,-566.21475957,0.00043706,30]
[320083302,1711141061084,-157.9077846,0.00043707,30]
[320083303,1711141061109,-333.031912,0.00043798,49]
[320083304,1711141061134,-19844.62503545,0.000438,60]
[320083305,1711141061157,-40000.0,0.000438,70]
[320083306,1711141061180,-453.68168246,0.000438,30]
[320083307,1711141061204,-8714.0,0.000438,120]
[320083308,1711141061228,-14974.76741237,0.000438,120]
[320083309,1711141061262,-1040.5072759,0.000439,30]
[320083310,1711141061287,-5959.03,0.00043962,30]
[320083311,1711141061313,-5959.03,0.00043962,30]
[320083312,1711141061339,-500.0,0.00043974,30]
[320083313,1711141061370,-200000.0,0.00044,34]
[320083314,1711141061395,-1000.0,0.00044,110]
[320083315,1711141061418,-93070.3986325,0.00044,30]
[320083316,1711141061440,-53332.99999899,0.00044,33]
[320083317,1711141061463,-500.0,0.00044,20]
[320083318,1711141061485,-2100.0,0.00044,30]
[320083319,1711141061513,-25000.0,0.00044,120]
[320083320,1711141061537,-308.25109614,0.00044,44]
[320083321,1711141061560,-1000.0,0.00044,120]
[320083322,1711141061584,-250.0,0.00044,60]
[320083323,1711141061608,-2000.0,0.00044,30]
[320083324,1711141061635,-300.0,0.00044,18]
[320083325,1711141061659,-174.76837769,0.00044,30]
[320083326,1711141061685,-253.26,0.00044,120]
[320083327,1711141061709,-8015.68,0.00044,120]
[320083328,1711141061733,-15000.0,0.00044,120]
[320083329,1711141061757,-2993.231737,0.00044,44]
[320083330,1711141061780,-15000.0,0.00044,120]
[320083331,1711141061803,-2293.89,0.00044,120]
[320083332,1711141061826,-15000.0,0.00044019,120]
[320083333,1711141062057,-6627.13,0.00044019,120]
[320083334,1711141062083,-15000.0,0.00044038,120]
[320083335,1711141062106,-15000.0,0.00044056,120]
[320083336,1711141062131,-15000.0,0.00044075,120]
[320083337,1711141062155,-15000.0,0.00044094,120]
[320083338,1711141062177,-1091.0,0.000441,30]
[320083339,1711141062201,-1027.0,0.000441,30]
[320083340,1711141062225,-152.0,0.00044102,32]
[320083341,1711141062249,-15000.0,0.00044113,120]
[320083342,1711141062273,-15000.0,0.00044131,120]
[320083343,1711141062295,-15000.0,0.0004415,120]
[320083344,1711141062318,-15000.0,0.00044169,120]
[320083345,1711141062342,-15000.0,0.00044188,120]
[320083346,1711141062368,-333.031912,0.00044198,49]
[320083347,1711141062392,-10296.4,0.00044206,120]
[320083348,1711141062415,-5959.03,0.00044235,30]
[320083349,1711141062438,-5959.03,0.00044235,30]
[320083350,1711141062461,-500.0,0.00044248,30]
[320083351,1711141062484,-500.0,0.00044272,30]
[320083352,1711141062509,-47398.99392214,0.00044367,30]
[320083353,1711141062533,-12003.95348035,0.00044367,30]
[320083354,1711141062556,-10089.97197586,0.0004438,120]
[320083355,1711141062581,-780.41480548,0.00044384,30]
[320083356,1711141062606,-284.76107608,0.00044384,30]
[320083357,1711141062631,-150.0,0.00044384,30]
[320083358,1711141062655,-355.22702406,0.00044384,30]
[320083359,1711141062682,-150.0,0.00044384,30]
[320083360,1711141062705,-150.0,0.00044384,30]
[320083361,1711141062728,-150.0,0.00044384,30]
[320083362,1711141062753,-150.0,0.00044384,30]
[320083363,1711141062777,-150.0,0.00044384,30]
[320083364,1711141062800,-150.0,0.00044384,30]
[320083365,1711141062823,-150.0,0.00044384,30]
[320083366,1711141062846,-291.30653071,0.00044384,30]
[320083367,1711141062870,-780.41480548,0.00044433,30]
[320083368,1711141062893,-284.76107608,0.00044433,30]
[320083369,1711141062916,-355.22702406,0.00044433,30]
[320083370,1711141062941,-150.0,0.00044461,30]
[320083371,1711141062964,-150.0,0.00044472,30]
[320083372,1711141062986,-780.41480548,0.00044483,30]
[320083373,1711141063009,-284.76107608,0.00044483,30]
[320083374,1711141063032,-355.22702406,0.00044483,30]
[320083375,1711141063057,-151.032215,0.00044498,44]
[320083376,1711141063081,-333.031912,0.00044498,49]
[320083377,1711141063104,-11541.72167494,0.000445,120]
[320083378,1711141063128,-11878.4807746,0.000445,40]
[320083379,1711141063152,-250.0,0.000445,60]
[320083380,1711141063176,-150.0,0.00044501,30]
[320083381,1711141063199,-5959.03,0.00044508,30]
[320083382,1711141063222,-5959.03,0.00044508,30]
[320083383,1711141063245,-500.0,0.00044522,30]
[320083384,1711141063268,-780.41480548,0.00044533,30]
[320083385,1711141063290,-284.76107608,0.00044533,30]
[320083386,1711141063313,-355.22702406,0.00044533,30]
[320083387,1711141063337,-150.0,0.00044538,30]
[320083388,1711141063359,-1091.0,0.0004455,30]
[320083389,1711141063384,-150.0,0.0004456,30]
[320083390,1711141063406,-780.41480548,0.00044583,30]
[320083391,1711141063429,-284.76107608,0.00044583,30]
[320083392,1711141063455,-355.22702406,0.00044583,30]
[320083393,1711141063478,-150.0,0.00044615,30]
[320083394,1711141063501,-150.0,0.00044618,30]
[320083395,1711141063527,-780.41480548,0.00044633,30]
[320083396,1711141063552,-284.76107608,0.00044633,30]
[320083397,1711141063577,-355.22702406,0.00044633,30]
[320083398,1711141063604,-150.0,0.00044648,30]
[320083399,1711141063629,-40032.26567245,0.00044658,30]
[320083400,1711141063652,-1623.17412665,0.00044658,30]
[320083401,1711141063678,-40032.26567245,0.00044661,30]
[320083402,1711141063703,-40032.26567245,0.00044666,30]
[320083403,1711141063725,-1623.17412665,0.00044668,30]
[320083404,1711141063749,-40032.26567245,0.00044674,30]
[320083405,1711141063772,-1623.17412665,0.00044674,30]
[320083406,1711141063796,-152.0,0.00044676,33]
[320083407,1711141063819,-780.41480548,0.00044682,30]
[320083408,1711141063843,-284.76107608,0.00044682,30]
[320083409,1711141063866,-355.22702406,0.00044682,30]
[320083410,1711141063889,-1623.17412665,0.00044683,30]
[320083411,1711141063913,-40032.26567245,0.00044687,30]
[320083412,1711141063938,-40032.26567245,0.00044689,30]
[320083413,1711141063961,-1623.17412665,0.00044689,30]
[320083414,1711141063984,-1623.17412665,0.00044689,30]
[320083415,1711141064007,-150.0,0.00044692,30]
[320083416,1711141064029,-1623.17412665,0.00044694,30]
[320083417,1711141064054,-40032.26567245,0.00044696,30]
[320083418,1711141064079,-333.7697055,0.00044727,30]
[320083419,1711141064104,-347.3830682,0.00044727,30]
[320083420,1711141064127,-387.95971105,0.00044727,15]
[320083421,1711141064153,-676.62322973,0.00044727,36]
[320083422,1711141064175,-255.08738535,0.00044727,30]
[320083423,1711141064200,-2365.43961642,0.00044727,120]
[320083424,1711141064223,-780.41480548,0.00044732,30]
[320083425,1711141064246,-284.76107608,0.00044732,30]
[320083426,1711141064268,-355.22702406,0.00044732,30]
[320083427,1711141064290,-150.0,0.00044736,30]
[320083428,1711141064313,-150.0,0.00044736,30]
[320083429,1711141064336,-150.0,0.00044769,30]
[320083430,1711141064359,-5959.03,0.00044781,30]
[320083431,1711141064383,-5959.03,0.00044781,30]
[320083432,1711141064407,-780.41480548,0.00044782,30]
[320083433,1711141064432,-284.76107608,0.00044782,30]
[320083434,1711141064456,-355.22702406,0.00044782,30]
[320083435,1711141064481,-2626.01722264,0.00044789,48]
[320083436,1711141064505,-500.0,0.00044796,30]
[320083437,1711141064732,-142659.74162939,0.000448,30]
[320083438,1711141064757,-214.0,0.0004482,30]
[320083439,1711141064782,-150.0,0.00044824,30]
[320083440,1711141064806,-780.41480548,0.00044832,30]
[320083441,1711141064831,-284.76107608,0.00044832,30]
[320083442,1711141064855,-355.22702406,0.00044832,30]
[320083443,1711141064879,-150.0,0.00044846,30]
[320083444,1711141064902,-30109.51803037,0.0004485,120]
[320083445,1711141064925,-150.0,0.00044853,30]
[320083446,1711141064951,-780.41480548,0.00044882,30]
[320083447,1711141064976,-284.76107608,0.00044882,30]
[320083448,1711141064998,-355.22702406,0.00044882,30]
[320083449,1711141065021,-281.61182653,0.000449,25]
[320083450,1711141065046,-150.0,0.00044912,30]
[320083451,1711141065069,-150.0,0.00044923,30]
[320083452,1711141065091,-780.41480548,0.00044931,30]
[320083453,1711141065118,-284.76107608,0.00044931,30]
[320083454,1711141065142,-355.22702406,0.00044931,30]
[320083455,1711141065166,-150.0,0.00044931,30]
[320083456,1711141065190,-500.0,0.00044936,30]
[320083457,1711141065216,-199.7433,0.0004495,120]
[320083458,1711141065243,-150.0,0.00044971,30]
[320083459,1711141065267,-780.41480548,0.00044981,30]
[320083460,1711141065291,-284.76107608,0.00044981,30]
[320083461,1711141065314,-355.22702406,0.00044981,30]
[320083462,1711141065337,-341.7185603,0.0004499,15]
[320083463,1711141065360,-1000.0,0.00044999,120]
[320083464,1711141065387,-200000.0,0.00045,35]
[320083465,1711141065412,-150.0,0.00045,30]
[320083466,1711141065436,-150.0,0.00045,30]
[320083467,1711141065459,-291.55704224,0.00045,120]
[320083468,1711141065482,-1007.65,0.00045,120]
[320083469,1711141065506,-131203.87271673,0.00045,120]
[320083471,1711141071559,-150.0,0.00032877,30]
[320083472,1711141071583,-150.0,0.00032877,30]
[320083473,1711141071608,-150.0,0.00032877,30]
[320083474,1711141071637,-150.0,0.00032877,30]
[320083475,1711141071661,-150.0,0.00032877,30]
[320083476,1711141071684,-150.0,0.00032877,30]
[320083477,1711141071709,-150.0,0.00032877,30]
[320083478,1711141071732,-150.0,0.00032877,30]
[320083479,1711141071761,-150.0,0.00032877,30]
[320083480,1711141071785,-150.0,0.00032877,30]
[320083481,1711141071809,-150.0,0.00032877,30]
[320083482,1711141071833,-150.0,0.00032877,30]
[320083483,1711141071857,-150.0,0.00032877,30]
[320083484,1711141071884,-150.0,0.00032877,30]
[320083485,1711141071909,-150.0,0.00032877,30]
[320083486,1711141071933,-150.0,0.00032877,30]
[320083487,1711141071957,-150.0,0.00032877,30]
[320083488,1711141072249,-150.0,0.00032877,30]
[320083489,1711141072273,-150.0,0.00032877,30]
[320083490,1711141072296,-150.0,0.00032877,30]
[320083491,1711141072319,-150.0,0.00032877,30]
[320083492,1711141072341,-150.0,0.00032877,30]
[320083493,1711141072364,-150.0,0.00032877,30]
[320083494,1711141072389,-150.0,0.00032877,30]
[320083495,1711141072417,-150.0,0.00032877,30]
[320083496,1711141072440,-150.0,0.00032877,30]
[320083497,1711141072463,-150.0,0.00032877,30]
[320083498,1711141072486,-150.0,0.00032877,30]
[320083499,1711141072510,-150.0,0.00032877,30]
[320083500,1711141072533,-150.0,0.00032877,30]
[320083501,1711141072570,-150.0,0.00032877,30]
[320083502,1711141072599,-150.0,0.00032877,30]
[320083503,1711141072623,-150.0,0.00032877,30]
[320083504,1711141072651,-150.0,0.00032877,30]
[320083505,1711141072677,-150.0,0.00032877,30]
[320083506,1711141072703,-150.0,0.00032877,30]
[320083507,1711141072728,-150.0,0.00032877,30]
[320083508,1711141072752,-150.0,0.00032877,30]
[320083509,1711141072778,-150.0,0.00032877,30]
[320083510,1711141072802,-150.0,0.00032877,30]
[320083511,1711141072826,-150.0,0.00032877,30]
[320083512,1711141072852,-150.0,0.00032877,30]
[320083513,1711141072879,-150.0,0.00032877,30]
[320083514,1711141072904,-150.0,0.00032877,30]
[320083515,1711141072929,-150.0,0.00032877,30]
[320083516,1711141072954,-150.0,0.00032877,30]
[320083517,1711141072980,-150.0,0.00032877,30]
[320083518,1711141073003,-150.0,0.00032877,30]
[320083519,1711141073026,-150.0,0.00032877,30]
[320083520,1711141073050,-150.0,0.00032877,30]
[320083521,1711141073082,-150.0,0.00032877,30]
[320083522,1711141073106,-150.0,0.00032877,30]
[320083523,1711141073135,-150.0,0.00032877,30]
[320083524,1711141073160,-150.0,0.00032877,30]
[320083525,1711141073226,-150.0,0.00032877,30]
[320083526,1711141073255,-150.0,0.00032877,30]
[320083527,1711141073281,-150.0,0.00032877,30]
[320083528,1711141073307,-150.0,0.00032877,30]
[320083529,1711141073334,-150.0,0.00032877,30]
[320083530,1711141073359,-150.0,0.00032877,30]
[320083531,1711141073386,-150.0,0.00032877,30]
[320083532,1711141073413,-150.0,0.00032877,30]
[320083533,1711141073437,-150.0,0.00032877,30]
[320083534,1711141073461,-150.0,0.00032877,30]
[320083535,1711141073485,-150.0,0.00032877,30]
[320083536,1711141073514,-150.0,0.00032877,30]
[320083537,1711141073575,-295.47219008,0.00040642,30]
[320083538,1711141073608,-295.47219008,0.00041023,30]
[320083539,1711141073640,-295.47219008,0.00041629,30]
[320083540,1711141073666,-166.3345474,0.0004214,30]
[320083541,1711141073691,-295.47219008,0.00042268,30]
[320083542,1711141073719,-295.4721903,0.00042504,30]
[320083544,1711141073744,-166.3345474,0.00042739,30]
[320083545,1711141073769,-166.3345474,0.0004294,30]
[320083546,1711141073794,-165.301,0.0004298,30]
[320083547,1711141073819,-300.0,0.0004298,30]
[320083548,1711141073847,-166.33454744,0.00043689,30]
[320083549,1711141073873,-424.43544152,0.0004369,30]
[320083550,1711141073916,-288796.12728327,0.00045,120]
[320083551,1711141073940,-2001.44678718,0.00045,30]
[320083552,1711141073964,-472.0,0.00045,21]
[320083553,1711141073989,-1003.6990298,0.00045,120]
[320083554,1711141074013,-1000.0,0.00045,120]
[320083555,1711141074036,-1500.0,0.00045,120]
[320083557,1711141074060,-250.0,0.00045,60]
[320083559,1711141074084,-181243.47186335,0.00045,45]
[320083560,1711141074111,-40000.0,0.00045,15]
[320083561,1711141074137,-1000.0,0.00045,120]
[320083562,1711141074161,-2000.0,0.00045,60]
[320083563,1711141074186,-300.0,0.00045,19]
[320083564,1711141074210,-20151.83073418,0.00045,30]
[320083565,1711141074235,-49165.89894673,0.00045,120]
[320083566,1711141074259,-478.0,0.00045,32]
[320083567,1711141074283,-1500.0,0.00045,120]
[320083568,1711141074307,-25000.0,0.00045,120]
[320083569,1711141074330,-188.0,0.00045,32]
[320083570,1711141074354,-2100.0,0.00045,45]
[320083571,1711141074380,-300.0,0.00045,30]
[320083572,1711141074406,-837.75,0.00045,90]
[320083573,1711141074430,-6471.01933856,0.00045,120]
[320083574,1711141074455,-17032.64748638,0.00045,120]
[320083575,1711141074484,-8220.99798927,0.00045,30]
[320083576,1711141074510,-728.15762762,0.00045,30]
[320083577,1711141074533,-1955.72800324,0.00045,30]
[320083578,1711141074558,-1091.0,0.00045,30]
[320083579,1711141074582,-236.44233835,0.00045,30]
[320083580,1711141074611,-780.41480548,0.00045031,30]
[320083581,1711141074639,-284.76107608,0.00045031,30]
[320083582,1711141074663,-355.22702406,0.00045031,30]
[320083583,1711141074687,-5959.03,0.00045055,30]
[320083584,1711141074711,-5959.03,0.00045055,30]
[320083585,1711141074735,-500.0,0.0004507,30]
[320083586,1711141074762,-150.0,0.00045077,30]
[320083587,1711141074787,-780.41480548,0.00045081,30]
[320083588,1711141074813,-284.76107608,0.00045081,30]
[320083589,1711141074838,-355.22702406,0.00045081,30]
[320083590,1711141074862,-150.0,0.00045088,30]
[320083591,1711141074888,-150.0,0.00045088,30]
[320083592,1711141074911,-780.41480548,0.00045131,30]
[320083593,1711141075227,-284.76107608,0.00045131,30]
[320083594,1711141075251,-355.22702406,0.00045131,30]
[320083595,1711141075274,-150.0,0.00045154,30]
[320083596,1711141075297,-150.0,0.00045176,30]
[320083597,1711141075321,-780.41480548,0.00045181,30]
[320083598,1711141075344,-284.76107608,0.00045181,30]
[320083599,1711141075368,-355.22702406,0.00045181,30]
[320083600,1711141075392,-150.0,0.00045205,30]
[320083601,1711141075415,-780.41480548,0.0004523,30]
[320083602,1711141075438,-284.76107608,0.0004523,30]
[320083603,1711141075462,-355.22702406,0.0004523,30]
[320083604,1711141075484,-150.0,0.00045231,30]
[320083605,1711141075512,-152.0,0.0004525,34]
[320083606,1711141075546,-150.0,0.00045264,30]
[320083607,1711141075573,-780.41480548,0.0004528,30]
[320083608,1711141075598,-284.76107608,0.0004528,30]
[320083609,1711141075621,-355.22702406,0.0004528,30]
[320083610,1711141075646,-150.0,0.00045308,30]
[320083611,1711141075669,-150.0,0.00045323,30]
[320083612,1711141075693,-5959.03,0.00045328,30]
[320083613,1711141075723,-5959.03,0.00045328,30]
[320083614,1711141075746,-780.41480548,0.0004533,30]
[320083615,1711141075769,-284.76107608,0.0004533,30]
[320083616,1711141075794,-355.22702406,0.0004533,30]
[320083617,1711141075819,-500.0,0.00045344,30]
[320083618,1711141075842,-150.0,0.00045352,30]
[320083619,1711141075866,-780.41480548,0.0004538,30]
[320083620,1711141075890,-284.76107608,0.0004538,30]
[320083621,1711141075913,-355.22702406,0.0004538,30]
[320083622,1711141075943,-150.0,0.00045385,30]
[320083623,1711141075967,-780.41480548,0.0004543,30]
[320083624,1711141075991,-284.76107608,0.0004543,30]
[320083625,1711141076016,-355.22702406,0.0004543,30]
[320083626,1711141076039,-150.0,0.0004544,30]
[320083627,1711141076062,-150.0,0.0004544,30]
[320083628,1711141076085,-1091.0,0.0004545,30]
[320083629,1711141076110,-150.0,0.00045462,30]
[320083630,1711141076135,-780.41480548,0.00045479,30]
[320083631,1711141076157,-284.76107608,0.00045479,30]
[320083632,1711141076181,-355.22702406,0.00045479,30]